[Event "85th Tata Steel Masters 2023"]
[White "Abdusattorov,Nodirbek"]
[Black "Caruana,Fabiano"]
[Site "Wijk aan Zee"]
[Round "2.1"]
[Annotator "TA"]
[Result "1/2-1/2"]
[Date "2023.01.15"]
[WhiteElo "2713"]
[BlackElo "2766"]
[PlyCount "108"]
[TimeControl "60"]

{[%evp 12,108,20,19,22,13,17,13,23,0,33,32,54,56,48,41,42,52,48,49,57,66,66,66,60,48,66,72,66,66,66,74,74,65,74,72,97,100,103,97,132,132,147,147,147,146,146,146,208,146,208,139,139,132,139,132,208,132,208,132,132,132,139,132,208,132,208,139,146,139,139,16,56,16,16,16,56,56,56,6,6,0,0,0,0,0,0,0,0,0,0,0,0,0,0,0,0,0,0]} 1. d4 {[%emt 0:0:6]} d5 {[%emt 0:0:6]} 2. c4 {[%emt 0:0:10]} e6 {[%emt 0:0:5]} 3. Nf3 {[%emt 0:0:15]} Nf6 {[%emt 0:0:7]} 4. Nc3 {[%emt 0:0:8]} Bb4 {[%emt 0:0:8]} 5. cxd5 {[%emt 0:0:25]} exd5 {[%emt 0:0:7]} 6. Bg5 {[%emt 0:0:6]} h6 {[%emt 0:0:39]} 7. Bh4 {[%emt 0:0:7]} O-O {[%emt 0:1:30] D38: Queen's Gambit Declined: Ragozin Defence (4 Nf3 Bb4).} 8. e3 {[%emt 0:0:8]} Bf5 {[%emt 0:0:38]} 9. Ne5 {[%emt 0:0:22]} c5 {[%emt 0:5:58]} 10. Be2 {[%emt 0:0:20] [#]} cxd4 $146 {[%emt 0:21:34]} (10... Nc6 {with more complications.} 11. O-O cxd4 12. exd4 Bxc3 13. bxc3 g5 )({Predecessor:} 10... Nc6 11. O-O cxd4 12. exd4 Be7 13. Re1 Re8 14. Bf3 Be6 15. a3 Qb6 16. Bxf6 Bxf6 17. Nxd5 Bxd5 18. Bxd5 Nxe5 19. dxe5 Bxe5 {½-½ Borisova,E (2250)-Cherniaiev,T (2209) Titled Tuesday intern op 08th Feb Early blitz 2022 (6)} )11. Qxd4 {[%emt 0:0:27]} Qb6 {[%emt 0:0:57]} 12. Qxb6 {[%emt 0:26:14]} axb6 {[%emt 0:0:21]} 13. Bxf6 {[%emt 0:0:12]} gxf6 {[%emt 0:0:5]} 14. Nd3 {[%emt 0:2:7]} Bxd3 {[%emt 0:11:27]} 15. Bxd3 {[%emt 0:0:5]} Nc6 {[%emt 0:6:35]} 16. Ke2 {[%emt 0:10:51]} Bxc3 {[%emt 0:22:57]} 17. bxc3 {[%emt 0:0:8]} Ra3 {[%emt 0:0:3]} 18. Rhb1 {[%emt 0:8:1]} Rfa8 {[%emt 0:1:50]} 19. Rxb6 {[%emt 0:0:34]} Rxa2+ {[%emt 0:1:2]} 20. Rxa2 {[%emt 0:0:9]} Rxa2+ $14 {[%emt 0:0:2][%mdl 4096] Endgame KRB-KRN} 21. Ke1 {[%emt 0:0:9]} Ne5 {[%emt 0:15:23]} 22. Bb1 {[%emt 0:16:6]} Ra3 {[%emt 0:0:51]} 23. Ke2 {[%emt 0:2:59]} ({Much worse is} 23. Rxf6 Ra1 24. Rb6 Nc4 $11 )Kg7 {[%emt 0:1:54]} 24. Rxb7 {[%emt 0:1:12]} Rxc3 {[%emt 0:0:4]} 25. Rb5 {[%emt 0:0:6] White is more active.} Rc1 {[%emt 0:4:47]} 26. Bf5 {[%emt 0:1:33]} Nc6 {[%emt 0:1:5]} 27. Rxd5 {[%emt 0:8:9]} Ne7 {[%emt 0:0:8]} 28. Rb5 {[%emt 0:0:3]} Nxf5 {[%emt 0:0:5]} 29. Rxf5 $16 {[%emt 0:0:3] KR-KR} Ra1 {[%emt 0:1:22]} (29... Kg6 $16 30. Ra5 Rh1 )30. Kf3 {[%emt 0:2:47]} Ra2 {[%emt 0:0:38]} (30... Rh1 $16 31. h3 Kg6 )31. Kg4 {[%emt 0:1:15]} Kg6 {[%emt 0:1:4][%cal Yh6h5]} 32. Rf3 {[%emt 0:0:8]} Rb2 {[%emt 0:1:19]} 33. Kh4 {[%emt 0:1:15]} Ra2 {[%emt 0:0:58]} (33... f5 $16 {was worth a try.} 34. Rf4 h5 )34. Rf4 {[%emt 0:0:5]} Rb2 {[%emt 0:0:19]} (34... f5 $16 {was necessary.} 35. Kg3 Ra6 )35. Rg4+ {[%emt 0:0:6]} Kh7 {[%emt 0:0:14]} 36. Kg3 {[%emt 0:0:9]} Ra2 {[%emt 0:0:39]} 37. Kf3 {[%emt 0:0:16]} Rb2 {[%emt 0:0:30]} (37... f5 $16 {was called for.} 38. Rb4 Ra6 )38. h3 {[%emt 0:0:44]} Ra2 {[%emt 0:0:14]} (38... f5 $16 39. Ra4 Rb6 )39. e4 {[%emt 0:0:4]} Rb2 {[%emt 0:1:23]} 40. Ke3 {[%emt 0:1:41]} Ra2 {[%emt 0:0:17]} 41. f4 {[%emt 0:51:51]} (41. Rf4 $16 )Ra1 {[%emt 0:55:40]} 42. Kd4 {[%emt 0:2:20]} Rd1+ {[%emt 0:0:16]} 43. Kc5 {[%emt 0:0:6]} Re1 {[%emt 0:2:59]} 44. f5 {[%emt 0:4:9]} Rd1 {[%emt 0:0:19]} 45. h4 {[%emt 0:0:33]} (45. Kc4 $14 )h5 $11 {[%emt 0:0:0] The position is equal.} 46. Rg3 {[%emt 0:0:0]} Rd2 {[%emt 0:0:0]} 47. Kc4 {[%emt 0:0:0]} Kh6 {[%emt 0:0:0]} 48. Kc3 {[%emt 0:0:0]} Ra2 {[%emt 0:0:0] [#] ( -> ...Ra3+)} 49. Kd4 {[%emt 0:0:0]} Rd2+ {[%emt 0:0:0]} 50. Ke3 {[%emt 0:0:0]} Ra2 {[%emt 0:0:0]} 51. Kf3 {[%emt 0:0:0]} Ra3+ {[%emt 0:0:0]} 52. Kf4 {[%emt 0:0:0]} Ra2 {[%emt 0:0:0]} 53. Kf3 {[%emt 0:0:0]} Ra3+ {[%emt 0:0:0]} 54. Kf4 {[%emt 0:0:0]} Ra2 {[%emt 0:0:0] White really could win this.   Weighted Error Value: White=0.18 (very precise) /Black=0.14 (very precise)} 1/2-1/2

[Event "85th Tata Steel Masters 2023"]
[White "Ding,Liren"]
[Black "Maghsoodloo,Parham"]
[Site "Wijk aan Zee"]
[Round "2.2"]
[Annotator "TA"]
[Result "1/2-1/2"]
[Date "2023.01.15"]
[WhiteElo "2811"]
[BlackElo "2719"]
[PlyCount "158"]
[TimeControl "60"]

{[%evp 17,158,38,34,0,12,0,0,16,12,13,29,26,12,26,3,0,0,0,0,0,0,0,0,-43,-23,-26,0,-38,-22,-24,-40,-39,0,0,0,0,66,27,61,61,54,0,128,109,101,70,82,105,123,114,87,93,87,121,112,150,120,25,24,34,41,28,167,167,175,175,175,174,174,174,174,139,332,265,230,137,148,158,158,166,541,167,167,167,167,167,167,167,478,167,167,167,167,0,0,0,270,208,208,208,208,215,262,20,20,20,20,20,20,20,27,27,27,0,42,0,0,0,0,0,0,0,0,0,0,0,0,0,0,0,0,0,0,0,0,0,0,0,0,0,0,0,0]} 1. e4 {[%emt 0:0:11]} e5 {[%emt 0:8:10]} 2. Nf3 {[%emt 0:0:17]} Nc6 {[%emt 0:0:6]} 3. Bb5 {[%emt 0:0:4]} a6 {[%emt 0:0:19]} 4. Ba4 {[%emt 0:0:6]} Nf6 {[%emt 0:0:6]} 5. O-O {[%emt 0:0:7]} b5 {[%emt 0:0:14]} 6. Bb3 {[%emt 0:0:6]} Bc5 {[%emt 0:0:6]} 7. a4 {[%emt 0:1:10]} Rb8 {[%emt 0:1:53]} 8. c3 {[%emt 0:0:56]} d6 {[%emt 0:0:7]} 9. d4 {[%emt 0:0:5]} Bb6 {[%emt 0:0:5]} 10. a5 {[%emt 0:1:53] C78: Ruy Lopez: Archangelsk and Möller Defences.} Ba7 {[%emt 0:0:7]} (10... Bxa5 $2 11. dxe5 (11. d5 Ne7 $18 )dxe5 12. Qxd8+ Kxd8 13. Bd5 (13. Bxf7 Bb6 $16 )Nxd5 14. exd5 $18 )11. h3 {[%emt 0:0:4]} O-O {[%emt 0:1:36]} 12. Be3 {[%emt 0:0:35]} Ra8 {[%emt 0:0:3] 12...Re8 is the fancy move.} 13. Nbd2 {[%emt 0:3:34]} Bb7 {[%emt 0:2:8]} 14. Re1 {[%emt 0:8:38]} Re8 {[%emt 0:0:11][%cal Yf8e8,Ye8e7,Ye7f7][%mdl 32]} 15. Ng5 {[%emt 0:28:19]} Re7 {[%emt 0:11:23][%cal Re5d4]} 16. Ndf3 {[%emt 0:0:27]} h6 $1 {[%emt 0:4:45]} 17. Nxf7 {[%emt 0:7:49][%mdl 64] Deflection} Rxf7 {[%emt 0:0:12]} 18. dxe5 {[%emt 0:0:3]} Bxe3 $1 {[%emt 0:0:43]} 19. exf6 {[%emt 0:0:8]} Ba7 {[%emt 0:0:49][%cal Yd8f6] [#]} 20. fxg7 $146 {[%emt 0:25:31] [#]} ({Predecessor:} 20. Bxf7+ Kxf7 21. Qd5+ Kf8 22. e5 dxe5 23. fxg7+ Kxg7 24. Qe4 Qf6 25. Rad1 Rd8 26. Qg4+ Kh7 27. Rxd8 Nxd8 28. Rxe5 Nf7 29. Re6 {1-0 Kurmann,O (2466)-Kenneskog,T (2307) Sitges Sunway op 8th 2021 (4)} )Qf6 $1 {[%emt 0:3:7][%cal Ya8e8]} 21. Qd5 {[%emt 0:6:41] The board is on fire.} Kxg7 {[%emt 0:19:30]} (21... Re8 {seems wilder.} 22. Qxf7+ Qxf7 23. Bxf7+ Kxf7 24. b4 Kxg7 25. Re2 Nd8 )22. Qxf7+ {[%emt 0:0:6]} Qxf7 {[%emt 0:0:3]} 23. Bxf7 {[%emt 0:0:4]} Kxf7 {[%emt 0:0:3]} 24. e5 {[%emt 0:3:19]} Nxe5 {[%emt 0:0:38]} 25. Nxe5+ {[%emt 0:0:7]} dxe5 {[%emt 0:0:3]} 26. Rxe5 {[%emt 0:0:55]} Rg8 {[%emt 0:1:46]} (26... Rd8 $11 )27. g4 $14 {[%emt 0:2:39] Rae1 would be deadly.} Rd8 {[%emt 0:13:9]} 28. Rae1 {[%emt 0:0:22]} Rd7 {[%emt 0:6:13][%cal Yb5b4] Prevents Re7+} 29. Kh2 {[%emt 0:2:36]} (29. b4 $14 )c5 {[%emt 0:0:29]} (29... Bd5 $11 {keeps the balance.} )30. Rf5+ $16 {[%emt 0:0:49]} Kg7 {[%emt 0:0:8]} 31. Kg3 {[%emt 0:5:39] White is more active.} Bb8+ {[%emt 0:3:17]} 32. Kh4 $1 {[%emt 0:0:4][%cal Ye1e6]} Bc7 {[%emt 0:5:36]} 33. Re6 $1 {[%emt 0:0:30]} Bd5 {[%emt 0:4:10]} 34. Rxa6 {[%emt 0:0:15]} b4 {[%emt 0:12:8]} 35. Kh5 {[%emt 0:4:55] And now Rg6+ would win.} Bf7+ {[%emt 0:0:19] [#]} 36. Rxf7+ $1 {[%emt 0:0:6][%mdl 576] Deflection} Kxf7 {[%emt 0:1:4]} 37. Kxh6 {[%emt 0:0:40]} (37. Rxh6 $6 Rd5+ 38. g5 bxc3 39. Rf6+ (39. bxc3 Bxa5 40. Rf6+ Kg7 $11 )Kg7 40. bxc3 (40. Rg6+ Kf7 $11 )Bxa5 41. Rg6+ Kf7 $11 )(37. Ra7 $16 )bxc3 $11 {[%emt 0:2:27]} 38. bxc3 $16 {[%emt 0:0:4][%mdl 4096] Endgame KRB-KR} Be5 $1 {[%emt 0:0:4]} 39. Rc6 {[%emt 0:5:41]} Bxc3 {[%emt 0:8:27]} (39... Rd8 $1 $11 {and Black stays safe.} )40. Rxc5 $18 {[%emt 0:1:9]} Bd2+ {[%emt 0:1:38]} 41. g5 $1 {[%emt 0:52:31][%cal Yf2f4] aiming for f4!} Rd4 {[%emt 0:51:51][%cal Rd4h4]} 42. Kh5 {[%emt 0:0:0] Wards off Rh4+} (42. Rc7+ Kf8 $16 )Ra4 {[%emt 0:0:0]} 43. Rc7+ {[%emt 0:0:0]} Kf8 {[%emt 0:0:0]} 44. Rd7 {[%emt 0:0:0]} Bc3 {[%emt 0:0:0]} (44... Be1 $16 {was called for.} )45. Kg6 {[%emt 0:0:0][%cal Yf2f4]} Rxa5 {[%emt 0:0:0] [#]} 46. h4 {[%emt 0:1:4]} (46. f4 $1 $18 {[%cal Rf4f5]} Ra6+ 47. Kh5 )Ra6+ {[%emt 0:0:0] [#]} 47. Kh7 $1 {[%emt 0:0:5][%mdl 1024] White has strong compensation.} Ra4 {[%emt 0:0:0]} 48. h5 {[%emt 0:0:9]} Rf4 $2 {[%emt 0:0:0]} (48... Ke8 49. Rc7 Bd2 )49. Rd3 $2 {[%emt 0:1:15]} (49. Rc7 Be5 50. Rc5 )Rf7+ {[%emt 0:0:0]} 50. Kg6 {[%emt 0:0:28]} Rg7+ {[%emt 0:0:0]} 51. Kh6 {[%emt 0:0:56]} Rc7 {[%emt 0:0:0]} 52. f4 {[%emt 0:0:17] f5 is the strong threat.} Rc6+ $2 {[%emt 0:0:0]} (52... Kf7 )53. Kh7 $2 {[%emt 0:0:6]} (53. g6 )Rc7+ {[%emt 0:0:0]} 54. Kg6 {[%emt 0:0:9]} Rc6+ {[%emt 0:0:0]} 55. Kh7 $2 {[%emt 0:1:23]} (55. Kf5 $18 )Rc7+ $1 $11 {[%emt 0:0:0]} 56. Kh6 $2 {[%emt 0:0:4][%mdl 8192]} (56. Kg6 $11 Rc6+ 57. Kf5 )Rc6+ $1 $18 {[%emt 0:0:0]} 57. g6 {[%emt 0:0:4]} Bf6 {[%emt 0:0:0]} 58. Ra3 {[%emt 0:0:7] Black must now prevent Ra8+.} Rc8 {[%emt 0:0:0] Prevents Ra8} 59. Ra6 {[%emt 0:0:32]} Bc3 {[%emt 0:0:0]} 60. Ra7 $2 {[%emt 0:2:39]} ({White should try} 60. Kg5 $18 )Kg8 $1 $11 {[%emt 0:0:0]} 61. Kg5 {[%emt 0:1:36] Threatens to win with h6.} Rc5+ {[%emt 0:0:0]} 62. Kg4 {[%emt 0:0:0]} Rc6 $1 {[%emt 0:0:0]} 63. Rd7 {[%emt 0:0:0] Hoping for Kg5.} Bb2 $1 {[%emt 0:0:0]} 64. Rd8+ {[%emt 0:0:8]} Kg7 {[%emt 0:0:0]} 65. Rd7+ {[%emt 0:0:3]} Kg8 {[%emt 0:0:0]} 66. Kg5 {[%emt 0:2:5] Threatening mate with Rd8+.} Rc5+ {[%emt 0:0:0] The position is equal.} 67. Kh6 {[%emt 0:0:17][%cal Rd7d8]} Bf6 {[%emt 0:0:0] Prevents Rd8+.} 68. Rf7 {[%emt 0:0:24]} Rc6 {[%emt 0:0:0]} 69. Ra7 {[%emt 0:0:38] Ra8+ would kill now.} Rd6 {[%emt 0:0:0]} 70. Ra8+ {[%emt 0:0:27]} Rd8 $1 {[%emt 0:0:0]} 71. Ra7 {[%emt 0:15:23]} Rd6 {[%emt 0:3:47]} 72. Rb7 {[%emt 0:0:9]} ({Much less strong is} 72. Ra8+ Rd8 73. Ra6 (73. Rxd8+ Bxd8 74. g7 Bf6 $11 )Rf8 $16 )Rd8 {[%emt 0:0:15]} 73. f5 {[%emt 0:0:43]} Rd6 {[%emt 0:3:59]} 74. Ra7 {[%emt 0:0:39]} ({Don't play} 74. Rb8+ Rd8 75. Rb6 (75. Rxd8+ Bxd8 76. f6 Bxf6 $11 )Bd4 $14 )Rd8 {[%emt 0:3:16]} 75. Ra6 {[%emt 0:0:14]} Rf8 {[%emt 0:4:7]} 76. Rc6 {[%emt 0:0:6]} Bd8 {[%emt 0:0:59]} 77. Re6 {[%emt 0:0:57]} Bf6 {[%emt 0:0:17]} 78. Rc6 {[%emt 0:0:5]} Bd8 {[%emt 0:0:4]} 79. Re6 {[%emt 0:0:5]} Bf6 {[%emt 0:0:3] Weighted Error Value: White=0.34/Black=0.26 (precise)} 1/2-1/2

[Event "85th Tata Steel Masters 2023"]
[White "Keymer,Vincent"]
[Black "Carlsen,Magnus"]
[Site "Wijk aan Zee"]
[Round "2.3"]
[Annotator "TA"]
[Result "0-1"]
[Date "2023.01.15"]
[WhiteElo "2696"]
[BlackElo "2859"]
[PlyCount "130"]
[TimeControl "60"]

{[%evp 17,130,32,39,14,26,17,21,0,1,1,1,1,12,-30,-33,-27,-28,-37,-35,-78,-84,-83,-81,-77,-71,-77,-75,-86,-74,-121,-123,-152,-143,-170,-143,-154,-108,-166,-152,-263,-256,-249,-284,-288,-282,-252,-272,-276,-288,-270,-264,-275,-270,-256,-215,-255,-281,-386,-330,-328,-339,-336,-285,-285,-308,-271,-208,-208,-208,-208,-208,-208,-208,-208,-208,-208,-199,-170,-170,-170,-182,-208,-208,-305,-170,-170,-170,-356,-358,-355,-350,-460,-460,-460,-460,-406,0,-325,-311,-460,-460,-412,-405,-460,-460,-29970,-29971,-29971,-29972,-29968,-12631,-29971,-29971,-29970,-29970]} 1. d4 {[%emt 0:0:3]} Nf6 {[%emt 0:0:59]} 2. c4 {[%emt 0:0:5]} g6 {[%emt 0:2:24]} 3. Nc3 {[%emt 0:1:35]} d5 {[%emt 0:0:23]} 4. Nf3 {[%emt 0:0:6]} Bg7 {[%emt 0:0:17]} 5. Bg5 {[%emt 0:0:6]} Ne4 {[%emt 0:8:1]} 6. Bf4 {[%emt 0:0:10]} Nxc3 {[%emt 0:4:55]} 7. bxc3 {[%emt 0:0:16]} c6 {[%emt 0:1:49]} 8. e3 {[%emt 0:2:37]} O-O {[%emt 0:0:35]} 9. Qb3 {[%emt 0:4:30]} Qa5 {[%emt 0:6:44]} 10. Be2 {[%emt 0:10:10] D91: Grünfeld: 4 Nf3 Bg7 5 Bg5.} dxc4 {[%emt 0:21:58]} 11. Bxc4 {[%emt 0:6:7]} Nd7 {[%emt 0:0:17] [#]} 12. Bg5 $146 {[%emt 0:15:52] The position is equal.} ({Predecessor:} 12. O-O Qf5 13. Bg3 Nb6 14. Be2 c5 15. a4 Qe6 16. Qxe6 Bxe6 17. Rfb1 Nd5 18. Ra3 cxd4 19. exd4 b6 20. c4 Nf6 21. a5 Ne4 22. axb6 axb6 23. Rab3 Ra4 {½-½ Bartos,J (2213)-Pecha,T (2260) Frydek Mistek IM 2012 (4)} )b5 {[%emt 0:7:37]} 13. Be2 {[%emt 0:11:8]} Re8 {[%emt 0:2:42][%cal Yd7c5]} 14. O-O {[%emt 0:6:31] Threatening a4.} Nb6 {[%emt 0:0:10]} 15. e4 {[%emt 0:0:41]} Be6 {[%emt 0:1:28]} 16. Qc2 {[%emt 0:0:24] [#]} c5 $1 {[%emt 0:2:10]} 17. d5 {[%emt 0:10:7]} (17. Rac1 Bc4 )Bg4 {[%emt 0:0:55]} 18. Bd2 {[%emt 0:1:7][%cal Ya2a4]} e6 {[%emt 0:9:15]} 19. Rab1 {[%emt 0:8:32]} c4 {[%emt 0:4:57]} 20. dxe6 {[%emt 0:2:32]} Rxe6 {[%emt 0:1:4]} 21. Nd4 {[%emt 0:1:47]} Bxe2 {[%emt 0:0:8]} 22. Nxe2 {[%emt 0:0:3]} a6 {[%emt 0:0:30]} 23. Nd4 {[%emt 0:4:59]} ({White should try} 23. Be3 )Ree8 $17 {[%emt 0:0:32]} 24. Rfe1 {[%emt 0:3:10]} Na4 {[%emt 0:2:37]} 25. Nc6 {[%emt 0:0:7]} Qc7 {[%emt 0:1:40]} 26. Nb4 {[%emt 0:0:4]} Nc5 {[%emt 0:0:38] Black is more active.} (26... Qb7 $142 27. h3 (27. Nd5 Nc5 $17 )Nb6 )27. Nd5 {[%emt 0:5:14]} (27. f3 $17 )Qc6 {[%emt 0:2:55][%cal Yc5e4]} 28. Bg5 {[%emt 0:1:34] [#]} (28. Nb4 $17 {might work better.} Qb7 29. f3 )Nxe4 $1 $19 {[%emt 0:3:45][%mdl 576] Remove Defender, Decoy} 29. Ne7+ {[%emt 0:0:5] [#]} (29. Rxe4 Qxd5 )Rxe7 $1 {[%emt 0:0:5][%mdl 512]} 30. Bxe7 {[%emt 0:0:3]} Nxc3 {[%emt 0:0:9]} 31. Rbc1 {[%emt 0:0:3] White is weak on the light squares} a5 {[%emt 0:0:40] Repels Bb4} 32. Bg5 {[%emt 0:2:35]} b4 {[%emt 0:0:44] aiming for ...a4.} 33. Bd2 {[%emt 0:3:21]} Rd8 {[%emt 0:0:57][%cal Yb4b3]} 34. h4 {[%emt 0:4:36]} Rd3 {[%emt 0:3:24]} 35. h5 {[%emt 0:2:56]} gxh5 {[%emt 0:0:17] Hoping for ...Bh6.} 36. Bxc3 {[%emt 0:0:39]} Bxc3 {[%emt 0:0:9]} (36... Rxc3 37. Qf5 $11 )37. Qe2 {[%emt 0:3:11]} Qd5 {[%emt 0:2:26] Prevents Qe4.} (37... Bxe1 38. Qxd3 Bxf2+ 39. Kf1 $15 (39. Kxf2 $2 Qf6+ 40. Qf3 Qb2+ 41. Qe2 Qxc1 $19 ))38. Qe8+ {[%emt 0:1:1]} Kg7 {[%emt 0:0:2]} 39. Re3 {[%emt 0:0:6]} h6 {[%emt 0:2:11]} 40. Qe4 {[%emt 0:1:37]} Qxe4 {[%emt 0:2:39]} 41. Rxe4 {[%emt 0:50:4][%mdl 4096] Endgame KRR-KRB} b3 {[%emt 0:51:15]} 42. Rxc4 {[%emt 0:0:0] [#]} bxa2 {[%emt 0:0:0]} 43. Ra4 {[%emt 0:0:0]} (43. R4xc3 $2 {too greedy.} Rxc3 44. Ra1 Rc2 $19 )a1=Q {[%emt 0:0:0]} ({Worse is} 43... a1=B 44. Rcxa1 Bxa1 45. Rxa1 )44. Rcxa1 {[%emt 0:0:0]} Bxa1 {[%emt 0:0:0]} 45. Rxa1 {[%emt 0:0:0] KR-KR} Rd5 {[%emt 0:0:0]} 46. Ra4 {[%emt 0:0:0]} Kf6 {[%emt 0:0:0]} 47. Kf1 {[%emt 0:0:0]} Ke6 {[%emt 0:0:0]} 48. Ke2 {[%emt 0:0:0]} Rf5 {[%emt 0:0:0]} 49. f3 {[%emt 0:0:0]} Kd6 {[%emt 0:0:0]} 50. Rc4 {[%emt 0:0:0]} (50. Kd3 $142 )Rc5 {[%emt 0:0:0]} (50... Rg5 $142 51. Kf2 Rb5 )51. Rf4 {[%emt 0:0:0]} Re5+ {[%emt 0:0:0]} 52. Kd3 $2 {[%emt 0:0:0]} (52. Kf2 )Ke6 {[%emt 0:0:0]} 53. Ra4 {[%emt 0:0:0]} Kf6 {[%emt 0:0:0]} 54. Rf4+ {[%emt 0:0:0]} Kg6 {[%emt 0:0:0]} 55. Ra4 {[%emt 0:0:0]} Rg5 {[%emt 0:0:0]} 56. Ra2 {[%emt 0:0:0]} Re5 {[%emt 0:0:0]} 57. Ra4 $1 {[%emt 0:0:0]} f6 {[%emt 0:0:0]} 58. g3 {[%emt 0:0:0]} (58. f4 $142 Rb5 59. Ke3 )Rg5 {[%emt 0:0:0]} 59. Ke3 {[%emt 0:3:6]} Rxg3 {[%emt 0:0:0] ...Rg2 would be deadly.} 60. Rxa5 {[%emt 0:0:5]} h4 {[%emt 0:0:0][%cal Yh5h4,Yh4h3][%mdl 32] ( -> ...h3)} 61. Ra8 {[%emt 0:0:0]} (61. Kf2 $19 )Kh5 {[%emt 0:0:0]} 62. Kf2 {[%emt 0:0:0]} Rg6 {[%emt 0:0:0]} 63. Ra5+ {[%emt 0:0:0]} Rg5 {[%emt 0:0:0]} 64. Ra3 {[%emt 0:0:0]} h3 {[%emt 0:0:0]} 65. f4 {[%emt 0:0:0]} Rg2+ {[%emt 0:0:0] Weighted Error Value: White=0.38/Black=0.15 (very precise)} 0-1

[Event "85th Tata Steel Masters 2023"]
[White "So,Wesley"]
[Black "Erigaisi Arjun"]
[Site "Wijk aan Zee"]
[Round "2.4"]
[Annotator "TA"]
[Result "1/2-1/2"]
[Date "2023.01.15"]
[WhiteElo "2760"]
[BlackElo "2722"]
[PlyCount "96"]
[TimeControl "60"]

{[%evp 10,96,29,32,52,51,47,53,52,57,51,0,0,0,20,-4,47,34,79,76,88,52,43,54,88,95,91,85,138,141,157,138,130,54,47,36,35,9,15,29,24,0,0,0,0,0,0,0,0,0,0,0,21,16,15,9,18,10,26,9,9,8,8,8,8,10,8,15,19,8,8,8,8,0,8,8,8,8,8,5,8,8,8,0,0,0,48,0,0]} 1. Nf3 {[%emt 0:0:6]} Nf6 {[%emt 0:0:15]} 2. c4 {[%emt 0:1:7]} c5 {[%emt 0:0:7]} 3. Nc3 {[%emt 0:0:5]} Nc6 {[%emt 0:0:7]} 4. g3 {[%emt 0:2:41]} d5 {[%emt 0:0:22]} 5. d4 {[%emt 0:1:12]} cxd4 {[%emt 0:1:59]} 6. Nxd4 {[%emt 0:0:24]} e5 {[%emt 0:0:24] A34: Symmetrical English: 2 Nc3, lines with ...d5.} 7. Nxc6 {[%emt 0:8:50]} bxc6 {[%emt 0:0:12]} 8. Bg2 {[%emt 0:0:35]} Rb8 {[%emt 0:0:8] White is slightly better.} (8... dxc4 9. Bxc6+ Bd7 10. Bxa8 Qxa8 11. f3 $16 )9. O-O {[%emt 0:9:49][%cal Rc4d5]} d4 {[%emt 0:1:4]} 10. Ne4 {[%emt 0:1:54]} (10. Bxc6+ $14 Bd7 11. Bxd7+ Qxd7 12. Na4 )Nxe4 $11 {[%emt 0:0:37]} 11. Bxe4 {[%emt 0:0:4]} Qc7 {[%emt 0:0:28]} 12. Qc2 {[%emt 0:3:20] [#]} Be6 $146 {[%emt 0:31:42]} (12... g6 $11 )({Predecessor:} 12... Bh3 13. Re1 Bb4 14. Rd1 Qc8 15. a3 Be7 16. e3 f5 17. Bh1 dxe3 18. Bxe3 O-O {½-½ Gonzalez Parejo,R (2221)-Echavarria,J (2274) COL pre olympic sf3 2019 (3)} )13. f4 $1 $14 {[%emt 0:9:23]} exf4 {[%emt 0:1:0]} 14. Bxf4 {[%emt 0:2:29]} Bd6 {[%emt 0:0:12]} 15. c5 {[%emt 0:8:58]} Bxf4 {[%emt 0:2:41]} 16. Rxf4 {[%emt 0:0:50]} a5 {[%emt 0:17:37]} 17. Rd1 {[%emt 0:9:20]} Rb4 {[%emt 0:8:42]} 18. b3 {[%emt 0:12:19]} ({Much worse is} 18. Bxh7 $6 d3 19. Qxd3 (19. exd3 $2 Rxf4 20. gxf4 Rxh7 $19 )Rxf4 20. gxf4 g6 21. Bxg6 fxg6 $11 )g5 {[%emt 0:7:40] [#]} ({Better is} 18... h5 )19. Rf3 $1 $16 {[%emt 0:2:45] White is more active.} Qe5 {[%emt 0:2:58]} 20. Bxc6+ {[%emt 0:7:22]} ({Much less strong is} 20. Bxh7 $6 Rb5 $14 )Ke7 {[%emt 0:0:6]} 21. Ba4 {[%emt 0:0:39]} ({White should play} 21. e4 $16 )h5 $1 $14 {[%emt 0:6:38]} 22. a3 {[%emt 0:3:16]} Rbb8 {[%emt 0:1:13]} 23. e3 {[%emt 0:0:29]} Rbd8 {[%emt 0:3:36]} 24. exd4 {[%emt 0:4:9]} Rxd4 {[%emt 0:0:6]} 25. Rxd4 {[%emt 0:2:13]} (25. Rdf1 {is more complex.} h4 26. Qc3 hxg3 27. Rxg3 Rd5 28. Qxe5 Rxe5 29. Rc1 )Qxd4+ {[%emt 0:0:6]} 26. Rf2 $1 {[%emt 0:0:15]} Rd8 {[%emt 0:10:7][%cal Yh8d8,Yd8d1,Yd1a1][%mdl 32]} 27. Qb2 $1 {[%emt 0:4:53]} Qxb2 {[%emt 0:0:29]} 28. Rxb2 $11 {[%emt 0:0:2][%mdl 4096] Endgame KRB-KRB} Rd1+ {[%emt 0:0:7]} 29. Kf2 {[%emt 0:0:3]} Ra1 {[%emt 0:0:7]} 30. c6 {[%emt 0:1:9]} Rxa3 {[%emt 0:0:38]} 31. c7 {[%emt 0:0:32] [#] And now Re2 would win.} Ra1 {[%emt 0:1:25]} 32. Rc2 {[%emt 0:0:36] Repels Rc1} Bc8 {[%emt 0:0:4]} 33. Ke3 {[%emt 0:1:47]} Rd1 {[%emt 0:3:15]} 34. Rc5 {[%emt 0:1:6][%csl Ya5,Yg5]} f5 {[%emt 0:1:4]} 35. h4 {[%emt 0:8:57]} gxh4 {[%emt 0:0:49]} 36. gxh4 {[%emt 0:0:2][%cal Yc5c6]} (36. Rxa5 $2 {is the wrong capture.} hxg3 37. Bc6 Rc1 $19 )Kd6 {[%emt 0:2:59]} 37. Rc6+ {[%emt 0:0:8]} Ke5 {[%emt 0:0:7]} 38. Bb5 {[%emt 0:2:2]} f4+ {[%emt 0:3:39]} 39. Kf2 {[%emt 0:0:6]} Rd2+ {[%emt 0:1:14]} 40. Ke1 {[%emt 0:0:28]} Rd6 {[%emt 0:0:48]} 41. Rc2 {[%emt 0:53:40]} f3 {[%emt 0:8:21]} 42. Kf2 {[%emt 0:0:0]} Rd4 {[%emt 0:1:22]} 43. Rc6 {[%emt 0:0:0] aiming for Ba6.} Rxh4 {[%emt 0:1:1]} 44. Bc4 {[%emt 0:0:0][%cal Yc4e6]} Rh2+ {[%emt 0:0:48]} 45. Kxf3 {[%emt 0:0:0][%cal Yc4e6] Threatens to win with Be6!} Rc2 $1 {[%emt 0:1:42]} 46. Ke3 {[%emt 0:0:0]} h4 {[%emt 0:1:15]} 47. Kd3 {[%emt 0:0:0]} Bf5+ {[%emt 0:0:12]} 48. Ke3 {[%emt 0:0:0] Rc5+ would be deadly.} Bc8 $1 {[%emt 0:0:9] Weighted Error Value: White=0.08 (flawless) /Black=0.06 (flawless)} 1/2-1/2